fUST/lending_fUST_20251230
["ID","MTS","AMOUNT","RATE_DAILY","PERIOD"]
[400059260,1767057041844,-491.37863043,0.00021917,2]
[400059262,1767057041853,-460.77258881,0.00021917,2]
[400059276,1767057041985,-447.25692417,0.00021917,2]
[400059279,1767057042000,-476.97803324,0.00021917,2]
[400059281,1767057042009,-264.5012368,0.00021917,2]
[400059282,1767057042018,-306.74492455,0.00021917,2]
[400059285,1767057042028,-185.23037313,0.00021917,2]
[400059286,1767057042037,-500.0,0.00021917,2]
[400059288,1767057042046,-195.74438465,0.00021917,2]
[400059290,1767057042056,-500.0,0.00021917,2]
[400059292,1767057042065,-199.94677936,0.00021917,2]
[400059294,1767057042074,-464.71326591,0.00021917,2]
[400059296,1767057042083,-610.95408846,0.00021917,2]
[400059298,1767057042092,-186.37266074,0.00021917,2]
[400059300,1767057042102,-460.71443357,0.00021917,2]
[400059302,1767057042111,-500.0,0.00021917,2]
[400059304,1767057042125,-235.4861929,0.00021917,2]
[400059306,1767057042134,-288.92186598,0.00021917,2]
[400059308,1767057042143,-413.5855328,0.00021917,2]
[400059310,1767057042153,-540.44375359,0.00021917,2]
[400059312,1767057042163,-305.52353352,0.00021917,2]
[400059314,1767057042172,-363.63724967,0.00021917,2]
[400059316,1767057042182,-419.21827466,0.00021917,2]
[400059318,1767057042194,-500.0,0.00021917,2]
[400059320,1767057042204,-500.0,0.00021917,2]
[400059322,1767057042214,-500.0,0.00021917,2]
[400059324,1767057042223,-561.91723085,0.00021917,2]
[400059326,1767057042234,-349.44841034,0.00021917,2]
[400059328,1767057042243,-500.0,0.00021917,2]
[400059330,1767057042252,-443.82116466,0.00021917,2]
[400059332,1767057042262,-471.93365652,0.00021917,2]
[400059334,1767057042271,-500.0,0.00021917,2]
[400059336,1767057042280,-275.42632348,0.00021917,2]
[400059338,1767057042289,-500.0,0.00021917,2]
[400059340,1767057042298,-488.22762557,0.00021917,2]
[400059342,1767057042307,-256.964808,0.00021917,2]
[400059344,1767057042316,-268.02262656,0.00021917,2]
[400059346,1767057042325,-398.66824558,0.00021917,2]
[400059348,1767057042334,-368.0625331,0.00021917,2]
[400059350,1767057042344,-538.10185872,0.00021917,2]
[400059352,1767057042353,-497.71228405,0.00021917,2]
[400059354,1767057042362,-378.82197893,0.00021917,2]
[400059356,1767057042371,-573.02929433,0.00021917,2]
[400059358,1767057042380,-262.68140088,0.00021917,2]
[400059359,1767057042389,-403.68063183,0.00021917,2]
[400059362,1767057042399,-7629.338496,0.00021917,2]
[400059363,1767057042409,-500.0,0.00021917,2]
[400059365,1767057042419,-314.14014211,0.00021917,2]
[400059367,1767057042428,-500.0,0.00021917,2]
[400059369,1767057042439,-539.0850877,0.00021917,2]
[400059372,1767057042449,-500.0,0.00021917,2]
[400059374,1767057042459,-420.23607407,0.00021917,2]
[400059375,1767057042468,-289.91132384,0.00021917,2]
[400059377,1767057042477,-476.5122698,0.00021917,2]
[400059379,1767057042486,-336.11535103,0.00021917,2]
[400059381,1767057042495,-449.17785108,0.00021917,2]
[400059383,1767057042504,-463.8590192,0.00021917,2]
[400059385,1767057042514,-475.74346308,0.00021917,2]
[400059387,1767057042523,-493.05979913,0.00021917,2]
[400059389,1767057042532,-500.0,0.00021917,2]
[400059390,1767057042543,-496.32975888,0.00021917,2]
[400059391,1767057042552,-500.0,0.00021917,2]
[400059392,1767057042562,-500.0,0.00021917,2]
[400059393,1767057042572,-506.42329108,0.00021917,2]
[400059394,1767057042582,-221.67463703,0.00021917,2]
[400059395,1767057042592,-250.76892888,0.00021917,2]
[400059396,1767057042601,-634.2289801,0.00021917,2]
[400059397,1767057042611,-354.63854456,0.00021917,2]
[400059398,1767057042620,-365.10181785,0.00021917,2]
[400059399,1767057042630,-477.6934302,0.00021917,2]
[400059401,1767057042639,-504.68438666,0.00021917,2]
[400059403,1767057042649,-487.77119636,0.00021917,2]
[400059404,1767057042659,-320.1998631,0.00021917,2]
[400059406,1767057042668,-213.22941767,0.00021917,2]
[400059408,1767057042677,-500.0,0.00021917,2]
[400059410,1767057042687,-500.0,0.00021917,2]
[400059412,1767057042697,-215.83814389,0.00021917,2]
[400059415,1767057042706,-404.40678334,0.00021917,2]
[400059416,1767057042715,-485.56870717,0.00021917,2]
[400059418,1767057042725,-482.52139185,0.00021917,2]
[400059420,1767057042734,-253.53306599,0.00021917,2]
[400059422,1767057042745,-333.76916282,0.00021917,2]
[400059424,1767057042755,-356.83985831,0.00021917,2]
[400059426,1767057042764,-187.90611098,0.00021917,2]
[400059428,1767057042774,-330.97691951,0.00021917,2]
[400059430,1767057042783,-376.73083576,0.00021917,2]
[400059432,1767057042793,-1000.0,0.00021917,2]
[400059434,1767057042803,-461.88261165,0.00021917,2]
[400059436,1767057042812,-269.01977505,0.00021917,2]
[400059438,1767057042822,-1000.0,0.00021917,2]
[400059439,1767057042831,-220.40876257,0.00021917,2]
[400059440,1767057042840,-500.0,0.00021917,2]
[400059441,1767057042849,-361.51873115,0.00021917,2]
[400059442,1767057042859,-203.35647701,0.00021917,2]
[400059443,1767057042869,-225.77006582,0.00021917,2]
[400059444,1767057042878,-177.90735047,0.00021917,2]
[400059445,1767057042887,-243.60402505,0.00021917,2]
[400059446,1767057042897,-500.0,0.00021917,2]
[400059447,1767057042906,-500.0,0.00021917,2]
[400059448,1767057042917,-240.09370217,0.00021917,2]
[400059449,1767057042926,-290.15325278,0.00021917,2]
[400059450,1767057042935,-496.84809073,0.00021917,2]
[400059451,1767057042944,-486.31154178,0.00021917,2]
[400059452,1767057042954,-465.70568753,0.00021917,2]
[400059453,1767057042963,-500.0,0.00021917,2]
[400059454,1767057042972,-409.43073117,0.00021917,2]
[400059455,1767057042981,-323.76444914,0.00021917,2]
[400059456,1767057042991,-275.06643056,0.00021917,2]
[400059457,1767057043001,-264.52877309,0.00021917,2]
[400059458,1767057043009,-497.87877484,0.00021917,2]
[400059459,1767057043019,-227.78362903,0.00021917,2]
[400059460,1767057043028,-488.92415349,0.00021917,2]
[400059461,1767057043037,-209.08726671,0.00021917,2]
[400059462,1767057043048,-237.34653622,0.00021917,2]
[400059463,1767057043058,-392.55406506,0.00021917,2]
[400059464,1767057043067,-463.66887211,0.00021917,2]
[400059465,1767057043077,-566.74984132,0.00021917,2]
[400059466,1767057043086,-415.47903261,0.00021917,2]
[400059467,1767057043096,-488.04044067,0.00021917,2]
[400059468,1767057043105,-161.18946542,0.00021917,2]
[400059469,1767057043115,-461.85768299,0.00021917,2]
[400059470,1767057043128,-574.48534634,0.00021917,2]
[400059471,1767057043137,-296.20535928,0.00021917,2]
[400059472,1767057043147,-487.22662135,0.00021917,2]
[400059473,1767057043156,-184.817009,0.00021917,2]
[400059474,1767057043168,-289.73431471,0.00021917,2]
[400059475,1767057043177,-197.12896296,0.00021917,2]
[400059476,1767057043186,-500.0,0.00021917,2]
[400059477,1767057043197,-495.84474953,0.00021917,2]
[400059478,1767057043206,-500.0,0.00021917,2]
[400059479,1767057043216,-244.31159298,0.00021917,2]
[400059480,1767057043225,-181.60437423,0.00021917,2]
[400059481,1767057043237,-415.36593718,0.00021917,2]
[400059482,1767057043248,-447.58246298,0.00021917,2]
[400059483,1767057043258,-228.49898026,0.00021917,2]
[400059484,1767057043267,-167.89015727,0.00021917,2]
[400059485,1767057043281,-246.82914686,0.00021917,2]
[400059486,1767057043296,-150.04324671,0.00021917,2]
[400059487,1767057043306,-438.8658737,0.00021917,2]
[400059488,1767057043315,-284.44472802,0.00021917,2]
[400059489,1767057043325,-312.71171079,0.00021917,2]
[400059490,1767057043335,-216.23520641,0.00021917,2]
[400059491,1767057043344,-291.75959071,0.00021917,2]
[400059492,1767057043354,-241.72242359,0.00021917,2]
[400059493,1767057043362,-500.0,0.00021917,2]
[400059494,1767057043372,-241.0507779,0.00021917,2]
[400059495,1767057043381,-210.12873179,0.00021917,2]
[400059496,1767057043390,-299.02872134,0.00021917,2]
[400059497,1767057043399,-490.74108158,0.00021917,2]
[400059498,1767057043408,-474.13507893,0.00021917,2]
[400059499,1767057043418,-158.60174501,0.00021917,2]
[400059500,1767057043427,-232.05339944,0.00021917,2]
[400059501,1767057043437,-469.4075144,0.00021917,2]
[400059502,1767057043454,-462.54292197,0.00021917,2]
[400059503,1767057043474,-150.4825193,0.00021917,2]
[400059504,1767057043484,-248.92613817,0.00021917,2]
[400059505,1767057043493,-426.82751742,0.00021917,2]
[400059506,1767057043503,-174.63658247,0.00021917,2]
[400059507,1767057043512,-268.81198579,0.00021917,2]
[400059508,1767057043523,-230.99483231,0.00021917,2]
[400059509,1767057043532,-154.63759183,0.00021917,2]
[400059510,1767057043542,-395.12698527,0.00021917,2]
[400059511,1767057043551,-188.57203443,0.00021917,2]
[400059512,1767057043561,-239.67666409,0.00021917,2]
[400059513,1767057043571,-469.94931329,0.00021917,2]
[400059514,1767057043580,-500.0,0.00021917,2]
[400059515,1767057043589,-516.4273939,0.00021917,2]
[400059516,1767057043599,-500.0,0.00021917,2]
[400059517,1767057043608,-183.26107061,0.00021917,2]
[400059518,1767057043618,-506.29868568,0.00021917,2]
[400059519,1767057043627,-260.5348626,0.00021917,2]
[400059520,1767057043637,-4821.6,0.00021917,2]
[400059521,1767057043646,-328.30768993,0.00021917,2]
[400059522,1767057043656,-407.85844134,0.00021917,2]
[400059523,1767057043665,-407.86933882,0.00021917,2]
[400059524,1767057043674,-568.76309973,0.00021917,2]
[400059525,1767057043684,-500.0,0.00021917,2]
[400059526,1767057043693,-191.35979133,0.00021917,2]
[400059527,1767057043702,-598.60330821,0.00021917,2]
[400059528,1767057043712,-499.53568973,0.00021917,2]
[400059529,1767057043722,-201.43304431,0.00021917,2]
[400059530,1767057043731,-253.63102759,0.00021917,2]
[400059531,1767057043741,-243.54881724,0.00021917,2]
[400059532,1767057043751,-460.17636895,0.00021917,2]
[400059533,1767057043760,-262.71392186,0.00021917,2]
[400059534,1767057043769,-500.0,0.00021917,2]
[400059535,1767057043779,-349.87778429,0.00021917,2]
[400059536,1767057043788,-517.85628227,0.00021917,2]
[400059537,1767057043798,-342.84833664,0.00021917,2]
[400059538,1767057043807,-199.91617465,0.00021917,2]
[400059539,1767057043817,-163.25279806,0.00021917,2]
[400059540,1767057043827,-385.30648605,0.00021917,2]
[400059541,1767057043836,-488.54130711,0.00021917,2]
[400059542,1767057043846,-314.06516067,0.00021917,2]
[400059543,1767057043856,-397.08280438,0.00021917,2]
[400059544,1767057043865,-404.6474823,0.00021917,2]
[400059545,1767057043874,-280.07760729,0.00021917,2]
[400059546,1767057043884,-500.0,0.00021917,2]
[400059547,1767057043893,-234.48823972,0.00021917,2]
[400059548,1767057043903,-380.96173072,0.00021917,2]
[400059549,1767057043912,-494.38316648,0.00021917,2]
[400059550,1767057043923,-164.63967481,0.00021917,2]
[400059551,1767057043932,-320.62728522,0.00021917,2]
[400059552,1767057043942,-500.0,0.00021917,2]
[400059553,1767057043951,-208.47163128,0.00021917,2]
[400059554,1767057043961,-161.69636147,0.00021917,2]
[400059555,1767057043970,-262.92534721,0.00021917,2]
[400059556,1767057043979,-269.57121711,0.00021917,2]
[400059557,1767057043988,-476.00274667,0.00021917,2]
[400059558,1767057043997,-480.0,0.00021917,2]
[400059559,1767057044007,-479.8863713,0.00021917,2]
[400059560,1767057044016,-226.63513394,0.00021917,2]
[400059561,1767057044025,-347.21846073,0.00021917,2]
[400059562,1767057044035,-361.59023769,0.00021917,2]
[400059563,1767057044044,-406.89272503,0.00021917,2]
[400059564,1767057044054,-451.7193611,0.00021917,2]
[400059565,1767057044063,-203.24190717,0.00021917,2]
[400059566,1767057044073,-467.99356264,0.00021917,2]
[400059567,1767057044082,-500.0,0.00021917,2]
[400059568,1767057044091,-381.44270376,0.00021917,2]
[400059569,1767057044101,-251.37829777,0.00021917,2]
[400059570,1767057044111,-500.0,0.00021917,2]
[400059571,1767057044121,-339.11993172,0.00021917,2]
[400059572,1767057044135,-500.0,0.00021917,2]
[400059573,1767057044144,-202.31376663,0.00021917,2]
[400059574,1767057044155,-273.4647335,0.00021917,2]
[400059575,1767057044164,-1000.0,0.00021917,2]
[400059576,1767057044175,-267.7999855,0.00021917,2]
[400059577,1767057044184,-248.87860646,0.00021917,2]
[400059578,1767057044195,-319.68433654,0.00021917,2]
[400059579,1767057044204,-500.0,0.00021917,2]
[400059580,1767057044214,-419.48502169,0.00021917,2]
[400059581,1767057044223,-500.0,0.00021917,2]
[400059582,1767057044232,-309.43647054,0.00021917,2]
[400059583,1767057044242,-465.19135142,0.00021917,2]
[400059584,1767057044252,-500.0,0.00021917,2]
[400059585,1767057044261,-374.95658771,0.00021917,2]
[400059586,1767057044271,-500.0,0.00021917,2]
[400059587,1767057044280,-463.44162143,0.00021917,2]
[400059588,1767057044289,-500.0,0.00021917,2]
[400059589,1767057044299,-251.01134055,0.00021917,2]
[400059590,1767057044308,-208.13778615,0.00021917,2]
[400059591,1767057044317,-367.57,0.00021917,2]
[400059592,1767057044327,-172.47455784,0.00021917,2]
[400059593,1767057044336,-186.64044942,0.00021917,2]
[400059594,1767057044346,-213.06669978,0.00021917,2]
[400059595,1767057044355,-500.0,0.00021917,2]
[400059596,1767057044366,-420.40948282,0.00021917,2]
[400059597,1767057044383,-434.87120027,0.00021917,2]
[400059598,1767057044394,-500.0,0.00021917,2]
[400059599,1767057044404,-501.1,0.00021917,2]
[400059600,1767057044413,-164.72537935,0.00021917,2]
[400059601,1767057044423,-426.17029981,0.00021917,2]
[400059602,1767057044433,-445.80989693,0.00021917,2]
[400059603,1767057044443,-499.59276763,0.00021917,2]
[400059604,1767057044452,-230.94001368,0.00021917,2]
[400059605,1767057044462,-500.0,0.00021917,2]
[400059606,1767057044471,-878.29,0.00021917,2]
[400059607,1767057044481,-206.2591174,0.00021917,2]
[400059608,1767057044491,-502.9,0.00021917,2]
[400059609,1767057044500,-262.88897779,0.00021917,2]
[400059610,1767057044509,-351.67604569,0.00021917,2]
[400059611,1767057044519,-500.0,0.00021917,2]
[400059612,1767057044528,-680.8,0.00021917,2]
[400059613,1767057044537,-380.6213759,0.00021917,2]
[400059614,1767057044547,-500.0,0.00021917,2]
[400059615,1767057044556,-327.42795179,0.00021917,2]
[400059616,1767057044565,-217.86653738,0.00021917,2]
[400059618,1767057044575,-500.0,0.00021917,2]
[400059620,1767057044584,-266.12580852,0.00021917,2]
[400059622,1767057044593,-621.07135702,0.00021917,2]
[400059623,1767057044602,-393.93519273,0.00021917,2]
[400059625,1767057044612,-470.89585768,0.00021917,2]
[400059628,1767057044621,-363.91423782,0.00021917,2]
[400059630,1767057044631,-249.9681414,0.00021917,2]
[400059632,1767057044641,-385.14357929,0.00021917,2]
[400059634,1767057044650,-419.94997901,0.00021917,2]
[400059635,1767057044659,-454.77996909,0.00021917,2]
[400059637,1767057044670,-174.43765319,0.00021917,2]
[400059639,1767057044679,-296.36211743,0.00021917,2]
[400059641,1767057044689,-500.0,0.00021917,2]
[400059654,1767057044796,-208.37773591,0.00021917,2]
[400059656,1767057044806,-394.44798284,0.00021917,2]
[400059658,1767057044816,-500.0,0.00021917,2]
[400059660,1767057044825,-460.4,0.00021917,2]
[400059662,1767057044835,-276.4405767,0.00021917,2]
[400059664,1767057044844,-583.56068195,0.00021917,2]
[400059666,1767057044853,-500.0,0.00021917,2]
[400059668,1767057044862,-501.89029961,0.00021917,2]
[400059670,1767057044872,-173.42928672,0.00021917,2]
[400059672,1767057044881,-452.63889928,0.00021917,2]
[400059674,1767057044891,-299.9120085,0.00021917,2]
[400059676,1767057044901,-281.13326683,0.00021917,2]
[400059678,1767057044911,-244.19042592,0.00021917,2]
[400059680,1767057044920,-189.07333693,0.00021917,2]
[400059682,1767057044929,-441.60555769,0.00021917,2]
[400059684,1767057044938,-500.0,0.00021917,2]
[400059686,1767057044948,-416.22411128,0.00021917,2]
[400059688,1767057044957,-441.07486283,0.00021917,2]
[400059690,1767057044967,-478.48389396,0.00021917,2]
[400059692,1767057044976,-275.38899138,0.00021917,2]
[400059694,1767057044986,-181.669416,0.00021917,2]
[400059696,1767057044995,-286.86271311,0.00021917,2]
[400059698,1767057045007,-576.74851698,0.00021917,2]
[400059700,1767057045017,-320.64526273,0.00021917,2]
[400059702,1767057045026,-441.85119835,0.00021917,2]
[400059704,1767057045036,-312.19237023,0.00021917,2]
[400059706,1767057045045,-474.25212021,0.00021917,2]
[400059708,1767057045054,-229.88879352,0.00021917,2]
[400059710,1767057045063,-500.0,0.00021917,2]
[400059712,1767057045072,-522.88825418,0.00021917,2]
[400059714,1767057045081,-500.0,0.00021917,2]
[400059715,1767057045090,-223.12119079,0.00021917,2]
[400059718,1767057045100,-449.40365979,0.00021917,2]
[400059720,1767057045110,-464.38811206,0.00021917,2]
[400059721,1767057045120,-243.7655413,0.00021917,2]
[400059723,1767057045131,-219.25366099,0.00021917,2]
[400059725,1767057045140,-500.0,0.00021917,2]
[400059728,1767057045150,-482.00582969,0.00021917,2]
[400059730,1767057045162,-439.14977885,0.00021917,2]
[400059732,1767057045173,-322.21446513,0.00021917,2]
[400059734,1767057045184,-442.47098096,0.00021917,2]
[400059736,1767057045194,-273.35091311,0.00021917,2]
[400059738,1767057045203,-489.5909872,0.00021917,2]
[400059740,1767057045212,-293.1369972,0.00021917,2]
[400059741,1767057045222,-327.11223151,0.00021917,2]
[400059744,1767057045232,-500.0,0.00021917,2]
[400059745,1767057045241,-471.79543403,0.00021917,2]
[400059748,1767057045251,-500.0,0.00021917,2]
[400059749,1767057045260,-184.88251798,0.00021917,2]
[400059751,1767057045269,-502.66559039,0.00021917,2]
[400059753,1767057045279,-200.01707268,0.00021917,2]
[400059755,1767057045288,-500.0,0.00021917,2]
[400059757,1767057045298,-500.0,0.00021917,2]
[400059759,1767057045307,-500.0,0.00021917,2]
[400059761,1767057045316,-464.19137506,0.00021917,2]
[400059762,1767057045326,-596.55559848,0.00021917,2]
[400059763,1767057045335,-345.23126733,0.00021917,2]
[400059764,1767057045345,-348.06819212,0.00021917,2]
[400059765,1767057045354,-595.06230155,0.00021917,2]
[400059766,1767057045364,-224.13773528,0.00021917,2]
[400059767,1767057045373,-1309.87044032,0.00021959,2]
[400059768,1767057045383,-500.0,0.00021964,2]
[400059769,1767057045392,-158.14,0.00022,2]
[400059770,1767057045402,-150.5,0.00022,2]
[400059771,1767057045412,-1207.08,0.00022,7]
[400059772,1767057045422,-500.0,0.00022058,2]
[400059775,1767057045432,-1185.67233566,0.00022191,2]
[400059776,1767057045441,-427.64161233,0.00022191,2]
[400059777,1767057045451,-500.0,0.00022191,2]
[400059778,1767057045460,-893.04,0.00022191,2]
[400059779,1767057045470,-500.0,0.00022191,2]
[400059780,1767057045479,-500.0,0.00022191,2]
[400059781,1767057045489,-418.82110015,0.00022191,2]
[400059782,1767057045499,-500.0,0.00022191,2]
[400059783,1767057045508,-500.0,0.00022191,2]
[400059784,1767057045518,-500.0,0.00022191,2]
[400059785,1767057045527,-500.0,0.00022191,2]
[400059787,1767057045537,-4821.6,0.00022191,2]
[400059789,1767057045547,-500.0,0.00022191,2]
[400059791,1767057045556,-500.0,0.00022191,2]
[400059792,1767057045565,-1000.0,0.00022191,2]
[400059794,1767057045574,-491.5,0.00022191,2]
[400059796,1767057045584,-500.0,0.00022191,2]
[400059798,1767057045593,-501.1,0.00022191,2]
[400059799,1767057045603,-878.29,0.00022191,2]
[400059800,1767057045612,-502.9,0.00022191,2]
[400059801,1767057045621,-680.8,0.00022191,2]
[400059802,1767057045631,-500.0,0.00022191,2]
[400059803,1767057045641,-500.0,0.00022191,2]
[400059804,1767057045650,-500.0,0.00022191,2]
[400059805,1767057045659,-500.0,0.00022191,2]
[400059806,1767057045670,-500.0,0.00022191,2]
[400059807,1767057045680,-1000.0,0.00022249,10]
[400059808,1767057045690,-791.0,0.00022249,10]
[400059809,1767057045700,-321.5,0.00022454,2]
[400059810,1767057045709,-1185.67233566,0.00022465,2]
[400059811,1767057045719,-500.0,0.00022465,2]
[400059812,1767057045729,-893.04,0.00022465,2]
[400059813,1767057045740,-500.0,0.00022465,2]
[400059814,1767057045750,-500.0,0.00022465,2]
[400059815,1767057045760,-500.0,0.00022465,2]
[400059817,1767057045770,-500.0,0.00022465,2]
[400059818,1767057045780,-500.0,0.00022465,2]
[400059819,1767057045789,-4821.6,0.00022465,2]
[400059820,1767057045798,-500.0,0.00022465,2]
[400059821,1767057045807,-500.0,0.00022465,2]
[400059822,1767057045817,-1000.0,0.00022465,2]
[400059823,1767057045826,-500.0,0.00022465,2]
[400059824,1767057045836,-501.1,0.00022465,2]
[400059826,1767057045846,-878.29,0.00022465,2]
[400059828,1767057045855,-502.9,0.00022465,2]
[400059830,1767057045865,-680.8,0.00022465,2]
[400059832,1767057045874,-500.0,0.00022465,2]
[400059834,1767057045884,-500.0,0.00022465,2]
[400059836,1767057045893,-500.0,0.00022465,2]
[400059838,1767057045902,-498.10670326,0.00022465,2]
[400059840,1767057045911,-500.0,0.00022469,2]
[400059841,1767057045921,-1309.87044032,0.00022513,2]
[400059843,1767057045930,-1185.67233566,0.00022739,2]
[400059844,1767057045940,-500.0,0.00022739,2]
[400059845,1767057045950,-893.04,0.00022739,2]
[400059846,1767057045959,-500.0,0.00022739,2]
[400059847,1767057045968,-500.0,0.00022739,2]
[400059848,1767057045978,-500.0,0.00022739,2]
[400059849,1767057045988,-500.0,0.00022739,2]
[400059850,1767057045999,-500.0,0.00022739,2]
[400059851,1767057046008,-4821.6,0.00022739,2]
[400059852,1767057046018,-500.0,0.00022739,2]
[400059853,1767057046027,-500.0,0.00022739,2]
[400059854,1767057046038,-568.41416315,0.00022739,2]
[400059855,1767057046048,-500.0,0.00022739,2]
[400059856,1767057046058,-501.1,0.00022739,2]
[400059857,1767057046067,-878.29,0.00022739,2]
[400059858,1767057046077,-502.9,0.00022739,2]
[400059859,1767057046089,-680.8,0.00022739,2]
[400059860,1767057046098,-500.0,0.00022739,2]
[400059861,1767057046108,-500.0,0.00022739,2]
[400059862,1767057046117,-500.0,0.00022739,2]
[400059863,1767057046131,-13657.63,0.000228,2]
[400059864,1767057046141,-585.32499773,0.00022904,14]
[400059865,1767057046151,-500.0,0.00022918,2]
[400059866,1767057046160,-500.0,0.00022918,2]
[400059867,1767057046170,-500.0,0.00022918,2]
[400059868,1767057046180,-500.0,0.00022918,2]
[400059869,1767057046190,-500.0,0.00022918,2]
[400059870,1767057046201,-500.0,0.00022918,2]
[400059871,1767057046211,-500.0,0.00022918,2]
[400059872,1767057046220,-151.0,0.00022918,2]
[400059873,1767057046230,-500.0,0.00022918,2]
[400059874,1767057046240,-151.0,0.00022918,2]
[400059875,1767057046249,-500.0,0.00022918,2]
[400059876,1767057046259,-2398.4119403,0.00022918,2]
[400059877,1767057046268,-183.83210402,0.00022918,2]
[400059878,1767057046278,-496.47127164,0.00022918,2]
[400059879,1767057046288,-500.0,0.00022918,2]
[400059880,1767057046298,-500.0,0.00022918,2]
[400059881,1767057046307,-500.0,0.00022918,2]
[400059882,1767057046316,-500.0,0.00022918,2]
[400059883,1767057046326,-500.0,0.00022918,2]
[400059884,1767057046335,-500.0,0.00022918,2]
[400059885,1767057046345,-500.0,0.00022918,2]
[400059886,1767057046354,-1185.67233566,0.00023013,2]
[400059887,1767057046364,-500.0,0.00023013,2]
[400059888,1767057046374,-893.04,0.00023013,2]
[400059889,1767057046384,-500.0,0.00023013,2]
[400059890,1767057046393,-500.0,0.00023013,2]
[400059892,1767057046402,-500.0,0.00023013,2]
[400059894,1767057046412,-500.0,0.00023013,2]
[400059896,1767057046422,-500.0,0.00023013,2]
[400059897,1767057046431,-4821.6,0.00023013,2]
[400059898,1767057046441,-500.0,0.00023013,2]
[400059899,1767057046450,-500.0,0.00023013,2]
[400059900,1767057046460,-500.0,0.00023013,2]
[400059901,1767057046471,-501.1,0.00023013,2]
[400059903,1767057046480,-878.29,0.00023013,2]
[400059904,1767057046490,-502.9,0.00023013,2]
[400059905,1767057046499,-680.8,0.00023013,2]
[400059906,1767057046509,-500.0,0.00023013,2]
[400059907,1767057046518,-500.0,0.00023013,2]
[400059908,1767057046528,-3246.12796854,0.00023048,2]
[400059909,1767057046537,-1309.87044032,0.00023066,2]
[400059910,1767057046546,-500.0,0.00023123,2]
[400059911,1767057046555,-500.0,0.00023259,2]
[400059912,1767057046564,-1185.67233566,0.00023287,2]
[400059913,1767057046573,-893.04,0.00023287,2]
[400059914,1767057046583,-500.0,0.00023287,2]
[400059915,1767057046593,-500.0,0.00023287,2]
[400059916,1767057046603,-500.0,0.00023287,2]
[400059917,1767057046612,-500.0,0.00023287,2]
[400059918,1767057046622,-587.13463047,0.00023287,2]
[400059919,1767057046632,-4821.6,0.00023287,2]
[400059920,1767057046641,-500.0,0.00023287,2]
[400059921,1767057046651,-500.0,0.00023287,2]
[400059922,1767057046661,-500.0,0.00023287,2]
[400059923,1767057046672,-501.1,0.00023287,2]
[400059924,1767057046682,-878.29,0.00023287,2]
[400059925,1767057046692,-502.9,0.00023287,2]
[400059926,1767057046701,-680.8,0.00023287,2]
[400059927,1767057046711,-500.0,0.00023287,2]
[400059928,1767057046721,-500.0,0.00023287,2]
[400059929,1767057046730,-151.0,0.000234,5]
[400059930,1767057046741,-2487.15318209,0.00023466,2]
[400059931,1767057046750,-514.84070869,0.00023466,2]
[400059932,1767057046759,-500.0,0.00023555,2]
[400059933,1767057046769,-1185.67233566,0.00023561,2]
[400059934,1767057046779,-893.04,0.00023561,2]
[400059935,1767057046789,-500.0,0.00023561,2]
[400059936,1767057046798,-155.7364656,0.00023561,2]
[400059937,1767057046808,-500.0,0.00023561,2]
[400059938,1767057046817,-500.0,0.00023561,2]
[400059939,1767057046827,-4821.6,0.00023561,2]
[400059940,1767057046836,-500.0,0.00023561,2]
[400059941,1767057046846,-500.0,0.00023561,2]
[400059942,1767057046855,-500.0,0.00023561,2]
[400059943,1767057046866,-501.1,0.00023561,2]
[400059944,1767057046876,-878.29,0.00023561,2]
[400059945,1767057046885,-502.9,0.00023561,2]
[400059946,1767057046895,-680.8,0.00023561,2]
[400059947,1767057046904,-500.0,0.00023561,2]